fUSD/lending_fUSD_20260427
["ID","MTS","AMOUNT","RATE_DAILY","PERIOD"]
[421217608,1777269564102,-173.0,0.00033777,30]
[421217609,1777269564128,-206.524,0.00033861,37]
[421217610,1777269564157,-2136.192,0.00033861,37]
[421217611,1777269564183,-173.0,0.00034,30]
[421217612,1777269564210,-2037.36,0.00034326,30]
[421217613,1777269564236,-628.51,0.00034326,30]
[421217614,1777269564262,-2662.35,0.00034326,30]
[421217615,1777269564289,-18656.02,0.00034326,30]
[421217616,1777269564316,-437.06,0.00034326,30]
[421217617,1777269564343,-500.0,0.00034466,120]
[421217618,1777269564371,-501.0,0.0003453,30]
[421217619,1777269564399,-250.0,0.0003453,30]
[421217620,1777269564426,-205.0,0.0003453,30]
[421217621,1777269564454,-1963.0,0.0003453,30]
[421217622,1777269564481,-359.0,0.0003453,30]
[421217623,1777269564508,-195.0,0.0003453,30]
[421217624,1777269564535,-483.0,0.0003453,30]
[421217625,1777269564564,-607.0,0.0003453,30]
[421217626,1777269564591,-655.0,0.00034532,30]
[421217627,1777269564617,-208.0,0.00034532,30]
[421217628,1777269564646,-158.0,0.00034532,30]
[421217629,1777269564673,-300.0,0.00034547,30]
[421217630,1777269564700,-160.5,0.000349,120]
[421217631,1777269564725,-513.0,0.00035,120]
[421217632,1777269564751,-160.0,0.00035,30]
[421217633,1777269564777,-200.0,0.00035068,90]
[421217634,1777269564803,-156.22,0.00035178,30]
[421217635,1777269564829,-173.0,0.00035178,30]
[421217636,1777269564855,-500.0,0.00035233,120]
[421217637,1777269564883,-501.0,0.0003553,30]
[421217638,1777269564910,-250.0,0.0003553,30]
[421217639,1777269564938,-205.0,0.0003553,30]
[421217640,1777269564966,-1963.0,0.0003553,30]
[421217641,1777269564994,-359.0,0.0003553,30]
[421217642,1777269565021,-195.0,0.0003553,30]
[421217643,1777269565048,-483.0,0.0003553,30]
[421217644,1777269565076,-607.0,0.0003553,30]
[421217645,1777269565105,-655.0,0.00035532,30]
[421217646,1777269565132,-208.0,0.00035532,30]
[421217647,1777269565160,-158.0,0.00035532,30]
[421217648,1777269565187,-250.0,0.00035562,38]
[421217649,1777269565215,-291.93,0.00035562,38]
[421217650,1777269565244,-156.0,0.00036,120]
[421217651,1777269565271,-153.02086639,0.00036,120]
[421217652,1777269565299,-500.0,0.00036219,120]
[421217653,1777269565326,-501.0,0.0003653,30]
[421217654,1777269565352,-250.0,0.0003653,30]
[421217655,1777269565379,-205.0,0.0003653,30]
[421217656,1777269565406,-1963.0,0.0003653,30]
[421217657,1777269565434,-359.0,0.0003653,30]
[421217658,1777269565461,-195.0,0.0003653,30]
[421217659,1777269565487,-483.0,0.0003653,30]
[421217660,1777269565514,-607.0,0.0003653,30]
[421217661,1777269565541,-655.0,0.00036532,30]
[421217662,1777269565566,-208.0,0.00036532,30]
[421217663,1777269565592,-158.0,0.00036532,30]
[421217664,1777269565618,-609.98049183,0.00036712,120]
[421217665,1777269565644,-160.5,0.000369,120]
[421217666,1777269565670,-359.59554039,0.00036911,120]
[421217667,1777269565697,-178.0,0.00036937,30]
[421217668,1777269565724,-150.06998132,0.00037,120]
[421217669,1777269565751,-368.0,0.00037,30]
[421217670,1777269565777,-500.0,0.00037068,120]
[421217671,1777269565803,-156.22,0.00037151,30]
[421217672,1777269565829,-189.22658958,0.000372,120]
[421217673,1777269565862,-982.4336332,0.000375,120]
[421217674,1777269565891,-501.0,0.0003753,30]
[421217675,1777269565918,-250.0,0.0003753,30]
[421217676,1777269565944,-205.0,0.0003753,30]
[421217677,1777269565971,-1963.0,0.0003753,30]
[421217678,1777269565998,-359.0,0.0003753,30]
[421217679,1777269566025,-195.0,0.0003753,30]
[421217680,1777269566052,-483.0,0.0003753,30]
[421217681,1777269566330,-607.0,0.0003753,30]
[421217682,1777269566370,-655.0,0.00037532,30]
[421217683,1777269566397,-208.0,0.00037532,30]
[421217684,1777269566425,-158.0,0.00037532,30]
[421217685,1777269566452,-300.0,0.00037573,30]
[421217686,1777269566478,-680.67297285,0.00037591,120]
[421217687,1777269566505,-500.0,0.00037808,120]
[421217688,1777269566531,-154.12385748,0.000379,120]
[421217689,1777269566558,-1000.0,0.00038,30]
[421217690,1777269566584,-158.0,0.00038,120]
[421217691,1777269566611,-151014.0,0.00038,120]
[421217692,1777269566638,-2075.0,0.00038,120]
[421217693,1777269566663,-202.74035649,0.00038,30]
[421217694,1777269566690,-1050.0,0.00038,90]
[421217695,1777269566720,-986.88,0.00038063,120]
[421217696,1777269566747,-239.69543511,0.000381,33]
[421217697,1777269566775,-464.7,0.00038355,30]
[421217698,1777269566801,-500.0,0.00038356,120]
[421217699,1777269566828,-500.0,0.00038356,120]
[421217700,1777269566853,-500.0,0.00038356,120]
[421217701,1777269566879,-500.0,0.00038356,120]
[421217702,1777269566905,-500.0,0.00038356,120]
[421217703,1777269566932,-500.0,0.00038356,120]
[421217704,1777269566959,-163.10563934,0.00038356,120]
[421217705,1777269566986,-1019.0,0.00038356,100]
[421217706,1777269567014,-286.8,0.00038356,120]
[421217707,1777269567042,-2216.74,0.00038356,120]
[421217708,1777269567068,-582.75,0.00038398,120]
[421217709,1777269567095,-2716.48,0.00038398,120]
[421217710,1777269567120,-838.02,0.00038398,120]
[421217711,1777269567147,-3549.8,0.00038398,120]
[421217712,1777269567173,-24874.7,0.00038398,120]
[421217713,1777269567201,-102210.0,0.000385,60]
[421217714,1777269567228,-2555.54277778,0.00038575,120]
[421217715,1777269567256,-500.0,0.0003863,120]
[421217716,1777269567285,-1818.0,0.0003863,120]
[421217717,1777269567312,-1818.0,0.0003863,90]
[421217718,1777269567340,-1818.0,0.0003863,60]
[421217719,1777269567367,-1818.0,0.0003863,30]
[421217720,1777269567394,-1818.0,0.0003863,70]
[421217721,1777269567420,-401.76558421,0.00038638,120]
[421217722,1777269567448,-500.0,0.000387,120]
[421217723,1777269567475,-500.0,0.000387,120]
[421217724,1777269567502,-500.0,0.000387,120]
[421217725,1777269567528,-500.0,0.000387,120]
[421217726,1777269567556,-500.0,0.000387,120]
[421217727,1777269567583,-500.0,0.000387,120]
[421217728,1777269567609,-500.0,0.000387,120]
[421217729,1777269567636,-500.0,0.000387,120]
[421217730,1777269567663,-500.0,0.000387,120]
[421217731,1777269567689,-500.0,0.000387,120]
[421217732,1777269567716,-500.0,0.000387,120]
[421217733,1777269567743,-500.0,0.000387,120]
[421217734,1777269567769,-500.0,0.000387,120]
[421217735,1777269567797,-500.0,0.000387,120]
[421217736,1777269567825,-500.0,0.000387,120]
[421217737,1777269567852,-500.0,0.000387,120]
[421217738,1777269567879,-500.0,0.000387,120]
[421217739,1777269567907,-500.0,0.000387,120]
[421217740,1777269567935,-500.0,0.000387,120]
[421217741,1777269567962,-500.0,0.000387,120]
[421217742,1777269567988,-3870.35101853,0.00038803,120]
[421217743,1777269568015,-1115.157653,0.00038852,30]
[421217744,1777269568044,-160.5,0.000389,120]
[421217745,1777269568070,-250.0,0.00038922,55]
[421217746,1777269568096,-1000.0,0.00039,30]
[421217747,1777269568121,-1000.0,0.00039,30]
[421217748,1777269568147,-2160.0,0.00039,120]
[421217749,1777269568174,-1000.0,0.00039,30]
[421217750,1777269568200,-1639.2,0.00039,60]
[421217751,1777269568227,-206.95,0.00039063,120]
[421217752,1777269568255,-332.6,0.00039063,120]
[421217753,1777269568282,-156.22,0.00039123,30]
[421217754,1777269568309,-8666.64050307,0.00039219,30]
[421217755,1777269568335,-8704.17980297,0.00039378,30]
[421217756,1777269568362,-500.0,0.00039452,120]
[421217757,1777269568390,-30000.0,0.000395,90]
[421217758,1777269568417,-30000.0,0.000395,90]
[421217759,1777269568444,-30000.0,0.000395,90]
[421217760,1777269568470,-30000.0,0.0003951,90]
[421217761,1777269568496,-30000.0,0.00039511,90]
[421217762,1777269568523,-30000.0,0.00039512,90]
[421217763,1777269568551,-30000.0,0.00039513,90]
[421217764,1777269568577,-30000.0,0.00039514,90]
[421217765,1777269568603,-60000.0,0.00039535,90]
[421217766,1777269568630,-8666.64050307,0.00039541,30]
[421217767,1777269568658,-60000.0,0.00039545,90]
[421217768,1777269568687,-152.83,0.00039626,120]
[421217769,1777269568712,-150.0,0.00039643,120]
[421217770,1777269568739,-1648.13990741,0.00039647,120]
[421217771,1777269568765,-500.0,0.00039686,60]
[421217772,1777269568791,-500.0,0.000397,30]
[421217773,1777269568817,-250.0,0.000397,30]
[421217774,1777269568844,-250.0,0.000397,30]
[421217775,1777269568871,-250.0,0.000397,30]
[421217776,1777269568898,-250.0,0.000397,30]
[421217777,1777269568924,-250.0,0.000397,30]
[421217778,1777269568952,-250.0,0.000397,30]
[421217779,1777269568979,-250.0,0.000397,30]
[421217780,1777269569006,-250.0,0.000397,30]
[421217781,1777269569033,-250.0,0.000397,30]
[421217782,1777269569060,-250.0,0.000397,30]
[421217783,1777269569087,-250.0,0.000397,30]
[421217784,1777269569115,-250.0,0.000397,30]
[421217785,1777269569410,-250.0,0.000397,30]
[421217786,1777269569439,-250.0,0.000397,30]
[421217787,1777269569466,-250.0,0.000397,30]
[421217788,1777269569493,-250.0,0.000397,30]
[421217789,1777269569519,-250.0,0.000397,30]
[421217790,1777269569546,-250.0,0.000397,30]
[421217791,1777269569571,-250.0,0.000397,30]
[421217792,1777269569600,-250.0,0.000397,30]
[421217793,1777269569627,-250.0,0.000397,30]
[421217794,1777269569653,-250.0,0.000397,30]
[421217795,1777269569679,-250.0,0.000397,30]
[421217796,1777269569707,-250.0,0.000397,30]
[421217797,1777269569733,-250.0,0.000397,30]
[421217798,1777269569760,-250.0,0.000397,30]
[421217799,1777269569787,-250.0,0.000397,30]
[421217800,1777269569814,-250.0,0.000397,30]
[421217801,1777269569841,-250.0,0.000397,30]
[421217802,1777269569868,-250.0,0.000397,30]
[421217803,1777269569895,-250.0,0.000397,30]
[421217804,1777269569922,-250.0,0.000397,30]
[421217805,1777269569949,-250.0,0.000397,30]
[421217806,1777269569975,-250.0,0.000397,30]
[421217807,1777269570001,-250.0,0.000397,30]
[421217808,1777269570027,-250.0,0.000397,30]
[421217809,1777269570054,-250.0,0.000397,30]
[421217810,1777269570083,-250.0,0.000397,30]
[421217811,1777269570112,-250.0,0.000397,30]
[421217812,1777269570141,-250.0,0.000397,30]
[421217813,1777269570169,-250.0,0.000397,30]
[421217814,1777269570197,-250.0,0.000397,30]
[421217815,1777269570223,-250.0,0.000397,30]
[421217816,1777269570251,-250.0,0.000397,30]
[421217817,1777269570277,-250.0,0.000397,30]
[421217818,1777269570304,-250.0,0.000397,30]
[421217819,1777269570333,-250.0,0.000397,30]
[421217820,1777269570361,-250.0,0.000397,30]
[421217821,1777269570388,-250.0,0.000397,30]
[421217822,1777269570415,-467.3,0.000397,30]
[421217823,1777269570441,-240.42,0.00039709,120]
[421217824,1777269570469,-500.0,0.0003972,120]
[421217825,1777269570496,-1000.0,0.00039725,120]
[421217826,1777269570523,-1000.0,0.00039725,120]
[421217827,1777269570552,-887.47956393,0.00039725,120]
[421217828,1777269570579,-405.40415438,0.00039726,120]
[421217829,1777269570607,-646.770127,0.00039726,30]
[421217830,1777269570635,-646.770127,0.00039726,30]
[421217831,1777269570661,-646.770127,0.00039726,30]
[421217832,1777269570688,-646.770127,0.00039726,30]
[421217833,1777269570715,-646.770127,0.00039726,30]
[421217834,1777269570744,-646.770127,0.00039726,30]
[421217835,1777269570772,-646.770127,0.00039726,30]
[421217836,1777269570800,-646.770127,0.00039726,30]
[421217837,1777269570828,-646.770127,0.00039726,30]
[421217838,1777269570856,-646.770127,0.00039726,30]
[421217839,1777269570884,-646.770127,0.00039726,30]
[421217840,1777269570912,-646.770127,0.00039726,30]
[421217841,1777269570940,-646.770127,0.00039726,30]
[421217842,1777269570968,-646.770127,0.00039726,30]
[421217843,1777269570997,-646.770127,0.00039726,30]
[421217844,1777269571027,-646.770127,0.00039726,30]
[421217845,1777269571058,-646.770127,0.00039726,30]
[421217846,1777269571087,-646.770127,0.00039726,30]
[421217847,1777269571116,-646.770127,0.00039726,30]
[421217848,1777269571148,-646.77012791,0.00039726,30]
[421217849,1777269571177,-151.0,0.00039726,30]
[421217850,1777269571206,-151.0,0.00039726,30]
[421217851,1777269571236,-151.0,0.00039726,30]
[421217852,1777269571265,-151.0,0.00039726,30]
[421217853,1777269571295,-179.32764,0.00039726,30]
[421217854,1777269571327,-151.0,0.00039726,30]
[421217855,1777269571358,-151.0,0.00039726,30]
[421217856,1777269571387,-151.0,0.00039726,30]
[421217857,1777269571417,-151.0,0.00039726,30]
[421217858,1777269571445,-151.0,0.00039726,30]
[421217859,1777269571476,-151.0,0.00039726,30]
[421217860,1777269571506,-151.0,0.00039726,30]
[421217861,1777269571535,-151.0,0.00039726,30]
[421217862,1777269571564,-151.0,0.00039726,30]
[421217863,1777269571592,-151.0,0.00039726,30]
[421217864,1777269571621,-151.0,0.00039726,30]
[421217865,1777269571649,-151.0,0.00039726,30]
[421217866,1777269571678,-154.110743,0.00039726,30]
[421217867,1777269571708,-764.796653,0.00039726,30]
[421217868,1777269571739,-764.796653,0.00039726,30]
[421217869,1777269571769,-764.796653,0.00039726,30]
[421217870,1777269571799,-764.796653,0.00039726,30]
[421217871,1777269571829,-764.796653,0.00039726,30]
[421217872,1777269571858,-764.796653,0.00039726,30]
[421217873,1777269571888,-764.796653,0.00039726,30]
[421217874,1777269571920,-764.796653,0.00039726,30]
[421217875,1777269571952,-764.796653,0.00039726,30]
[421217876,1777269571982,-764.796653,0.00039726,30]
[421217877,1777269572013,-764.796653,0.00039726,30]
[421217878,1777269572043,-764.796653,0.00039726,30]
[421217879,1777269572072,-764.796653,0.00039726,30]
[421217880,1777269572102,-764.796653,0.00039726,30]
[421217881,1777269572134,-764.796653,0.00039726,30]
[421217882,1777269572165,-764.796653,0.00039726,30]
[421217883,1777269572196,-764.796653,0.00039726,30]
[421217884,1777269572226,-764.796653,0.00039726,30]
[421217885,1777269572257,-764.796653,0.00039726,30]
[421217886,1777269572287,-764.796649,0.00039726,30]
[421217887,1777269572317,-151.0,0.00039726,30]
[421217888,1777269572347,-151.0,0.00039726,30]
[421217889,1777269572673,-151.0,0.00039726,30]
[421217890,1777269572701,-151.0,0.00039726,30]
[421217891,1777269572729,-151.0,0.00039726,30]
[421217892,1777269572756,-151.0,0.00039726,30]
[421217893,1777269572783,-155.927014,0.00039726,30]
[421217894,1777269572811,-208.340808,0.00039726,30]
[421217895,1777269572838,-208.340808,0.00039726,30]
[421217896,1777269572866,-208.340808,0.00039726,30]
[421217897,1777269572894,-208.340808,0.00039726,30]
[421217898,1777269572920,-208.340808,0.00039726,30]
[421217899,1777269572948,-208.340808,0.00039726,30]
[421217900,1777269572977,-208.340808,0.00039726,30]
[421217901,1777269573005,-208.340808,0.00039726,30]
[421217902,1777269573032,-208.340808,0.00039726,30]
[421217903,1777269573059,-208.340808,0.00039726,30]
[421217904,1777269573087,-208.340808,0.00039726,30]
[421217905,1777269573116,-208.340808,0.00039726,30]
[421217906,1777269573145,-208.340808,0.00039726,30]
[421217907,1777269573174,-1929.751704,0.00039726,30]
[421217908,1777269573202,-208.340808,0.00039726,30]
[421217909,1777269573230,-1929.751704,0.00039726,30]
[421217910,1777269573258,-208.340808,0.00039726,30]
[421217911,1777269573288,-1929.751704,0.00039726,30]
[421217912,1777269573316,-208.340808,0.00039726,30]
[421217913,1777269573344,-1929.751704,0.00039726,30]
[421217914,1777269573375,-208.340808,0.00039726,30]
[421217915,1777269573405,-1929.751704,0.00039726,30]
[421217916,1777269573433,-208.340808,0.00039726,30]
[421217917,1777269573461,-1929.751704,0.00039726,30]
[421217918,1777269573490,-208.340808,0.00039726,30]
[421217919,1777269573519,-1929.751704,0.00039726,30]
[421217920,1777269573548,-208.340799,0.00039726,30]
[421217921,1777269573578,-1929.751704,0.00039726,30]
[421217922,1777269573608,-1929.751704,0.00039726,30]
[421217923,1777269573636,-1929.751704,0.00039726,30]
[421217924,1777269573664,-1929.751704,0.00039726,30]
[421217925,1777269573692,-1929.751704,0.00039726,30]
[421217926,1777269573720,-1929.751704,0.00039726,30]
[421217927,1777269573753,-1929.751704,0.00039726,30]
[421217928,1777269573780,-1929.751704,0.00039726,30]
[421217929,1777269573807,-1840.351082,0.00039726,30]
[421217930,1777269573834,-1929.751704,0.00039726,30]
[421217931,1777269573861,-1840.351082,0.00039726,30]
[421217932,1777269573888,-1840.351082,0.00039726,30]
[421217933,1777269573916,-1840.351082,0.00039726,30]
[421217934,1777269573945,-1929.751704,0.00039726,30]
[421217935,1777269573973,-1840.351082,0.00039726,30]
[421217936,1777269574003,-1929.751704,0.00039726,30]
[421217937,1777269574031,-1840.351082,0.00039726,30]
[421217938,1777269574060,-1929.751704,0.00039726,30]
[421217939,1777269574087,-1840.351082,0.00039726,30]
[421217940,1777269574115,-1929.751703,0.00039726,30]
[421217941,1777269574144,-1840.351082,0.00039726,30]
[421217942,1777269574173,-1840.351082,0.00039726,30]
[421217943,1777269574200,-1840.351082,0.00039726,30]
[421217944,1777269574228,-1840.351082,0.00039726,30]
[421217945,1777269574256,-1840.351082,0.00039726,30]
[421217946,1777269574284,-1840.351082,0.00039726,30]
[421217947,1777269574311,-1840.351082,0.00039726,30]
[421217948,1777269574340,-1840.351082,0.00039726,30]
[421217949,1777269574369,-1840.351082,0.00039726,30]
[421217950,1777269574399,-1840.351082,0.00039726,30]
[421217951,1777269574431,-1840.351082,0.00039726,30]
[421217952,1777269574461,-1840.351082,0.00039726,30]
[421217953,1777269574489,-1840.351077,0.00039726,30]
[421217954,1777269574519,-1078.807934,0.00039726,30]
[421217955,1777269574547,-1078.807934,0.00039726,30]
[421217956,1777269574576,-1078.807934,0.00039726,30]
[421217957,1777269574605,-1078.807934,0.00039726,30]
[421217958,1777269574636,-1078.807934,0.00039726,30]
[421217959,1777269574667,-1078.807934,0.00039726,30]
[421217960,1777269574696,-1078.807934,0.00039726,30]
[421217961,1777269574724,-1078.807934,0.00039726,30]
[421217962,1777269574753,-1078.807934,0.00039726,30]
[421217963,1777269574782,-1078.807934,0.00039726,30]
[421217964,1777269574811,-1078.807934,0.00039726,30]
[421217965,1777269574839,-1078.807934,0.00039726,30]
[421217966,1777269574866,-1078.807934,0.00039726,30]
[421217967,1777269574894,-151.0,0.00039726,30]
[421217968,1777269574923,-1078.807934,0.00039726,30]
[421217969,1777269574953,-151.0,0.00039726,30]
[421217970,1777269574982,-1078.807934,0.00039726,30]
[421217971,1777269575010,-151.0,0.00039726,30]
[421217972,1777269575040,-1078.807934,0.00039726,30]
[421217973,1777269575068,-151.0,0.00039726,30]
[421217974,1777269575096,-1078.807934,0.00039726,30]
[421217975,1777269575125,-151.0,0.00039726,30]
[421217976,1777269575155,-1078.807934,0.00039726,30]
[421217977,1777269575185,-151.0,0.00039726,30]
[421217978,1777269575214,-1078.807934,0.00039726,30]
[421217979,1777269575243,-151.0,0.00039726,30]
[421217980,1777269575271,-1078.807941,0.00039726,30]
[421217981,1777269575300,-151.0,0.00039726,30]
[421217982,1777269575330,-151.0,0.00039726,30]
[421217983,1777269575358,-151.0,0.00039726,30]
[421217984,1777269575386,-292.259587,0.00039726,30]
[421217985,1777269575413,-165.906297,0.00039726,30]
[421217986,1777269575440,-165.906297,0.00039726,30]
[421217987,1777269575469,-19153.415424,0.00039726,30]
[421217988,1777269575497,-165.906297,0.00039726,30]
[421217989,1777269575523,-165.906297,0.00039726,30]
[421217990,1777269575551,-19153.415424,0.00039726,30]
[421217991,1777269575578,-165.906297,0.00039726,30]
[421217992,1777269575607,-19153.415424,0.00039726,30]
[421217993,1777269575907,-165.906297,0.00039726,30]
[421217994,1777269575937,-19153.415424,0.00039726,30]
[421217995,1777269575964,-165.906297,0.00039726,30]
[421217996,1777269575995,-19153.415424,0.00039726,30]
[421217997,1777269576024,-165.906297,0.00039726,30]
[421217998,1777269576053,-19153.415424,0.00039726,30]
[421217999,1777269576080,-165.906297,0.00039726,30]
[421218000,1777269576109,-19153.415424,0.00039726,30]
[421218001,1777269576138,-165.906297,0.00039726,30]
[421218002,1777269576168,-19153.415424,0.00039726,30]
[421218003,1777269576195,-165.906297,0.00039726,30]
[421218004,1777269576225,-19153.415424,0.00039726,30]
[421218005,1777269576256,-165.906297,0.00039726,30]
[421218006,1777269576286,-501.74781,0.00039726,30]
[421218007,1777269576315,-19153.415424,0.00039726,30]
[421218008,1777269576341,-165.906297,0.00039726,30]
[421218009,1777269576369,-501.74781,0.00039726,30]
[421218010,1777269576397,-19153.415424,0.00039726,30]
[421218011,1777269576424,-165.906297,0.00039726,30]
[421218012,1777269576452,-501.74781,0.00039726,30]
[421218013,1777269576482,-19153.415424,0.00039726,30]
[421218014,1777269576509,-165.906297,0.00039726,30]
[421218015,1777269576538,-501.74781,0.00039726,30]
[421218016,1777269576564,-19153.415424,0.00039726,30]
[421218017,1777269576592,-165.906297,0.00039726,30]
[421218018,1777269576622,-501.74781,0.00039726,30]
[421218019,1777269576649,-19153.415424,0.00039726,30]
[421218020,1777269576677,-165.906297,0.00039726,30]
[421218021,1777269576704,-501.74781,0.00039726,30]
[421218022,1777269576732,-19153.415424,0.00039726,30]
[421218023,1777269576760,-165.906297,0.00039726,30]
[421218024,1777269576788,-501.74781,0.00039726,30]
[421218025,1777269576816,-19153.415424,0.00039726,30]
[421218026,1777269576842,-165.906297,0.00039726,30]
[421218027,1777269576877,-501.74781,0.00039726,30]
[421218028,1777269576906,-19153.415424,0.00039726,30]
[421218029,1777269576938,-165.906291,0.00039726,30]
[421218030,1777269576969,-501.74781,0.00039726,30]
[421218031,1777269576999,-19153.415424,0.00039726,30]
[421218032,1777269577030,-501.74781,0.00039726,30]
[421218033,1777269577061,-19153.415424,0.00039726,30]
[421218034,1777269577091,-19153.415422,0.00039726,30]
[421218035,1777269577121,-501.74781,0.00039726,30]
[421218036,1777269577151,-501.74781,0.00039726,30]
[421218037,1777269577183,-501.74781,0.00039726,30]
[421218038,1777269577214,-501.74781,0.00039726,30]
[421218039,1777269577245,-501.74781,0.00039726,30]
[421218040,1777269577276,-501.74781,0.00039726,30]
[421218041,1777269577305,-501.74781,0.00039726,30]
[421218042,1777269577337,-501.74781,0.00039726,30]
[421218043,1777269577370,-501.74781,0.00039726,30]
[421218044,1777269577407,-501.747818,0.00039726,30]
[421218045,1777269577439,-313.930633,0.00039726,30]
[421218046,1777269577470,-313.930633,0.00039726,30]
[421218047,1777269577502,-313.930633,0.00039726,30]
[421218048,1777269577534,-313.930633,0.00039726,30]
[421218049,1777269577567,-313.930633,0.00039726,30]
[421218050,1777269577599,-313.930633,0.00039726,30]
[421218051,1777269577632,-313.930633,0.00039726,30]
[421218052,1777269577662,-313.930633,0.00039726,30]
[421218053,1777269577692,-313.930633,0.00039726,30]
[421218054,1777269577723,-313.930633,0.00039726,30]
[421218055,1777269577754,-313.930633,0.00039726,30]
[421218056,1777269577785,-313.930633,0.00039726,30]
[421218057,1777269577815,-313.930633,0.00039726,30]
[421218058,1777269577845,-313.930633,0.00039726,30]
[421218059,1777269577884,-313.930633,0.00039726,30]
[421218060,1777269577916,-313.930633,0.00039726,30]
[421218061,1777269577949,-313.930633,0.00039726,30]
[421218062,1777269577982,-313.930633,0.00039726,30]
[421218063,1777269578015,-313.930633,0.00039726,30]
[421218064,1777269578048,-313.930629,0.00039726,30]
[421218065,1777269578079,-1408.883166,0.00039726,30]
[421218066,1777269578109,-1408.883166,0.00039726,30]
[421218067,1777269578138,-1408.883166,0.00039726,30]
[421218068,1777269578169,-1408.883166,0.00039726,30]
[421218069,1777269578201,-1408.883166,0.00039726,30]
[421218070,1777269578230,-151.0,0.00039726,30]
[421218071,1777269578259,-1408.883166,0.00039726,30]
[421218072,1777269578288,-151.0,0.00039726,30]
[421218073,1777269578316,-1408.883166,0.00039726,30]
[421218074,1777269578344,-151.0,0.00039726,30]
[421218075,1777269578375,-151.0,0.00039726,30]
[421218076,1777269578405,-1408.883166,0.00039726,30]
[421218077,1777269578434,-151.0,0.00039726,30]
[421218078,1777269578462,-1408.883166,0.00039726,30]
[421218079,1777269578491,-151.0,0.00039726,30]
[421218080,1777269578520,-1408.883166,0.00039726,30]
[421218081,1777269578548,-151.0,0.00039726,30]
[421218082,1777269578579,-1408.883166,0.00039726,30]
[421218083,1777269578609,-151.0,0.00039726,30]
[421218084,1777269578639,-1408.883166,0.00039726,30]
[421218085,1777269578672,-151.0,0.00039726,30]
[421218086,1777269578702,-1408.883166,0.00039726,30]
[421218087,1777269578731,-151.0,0.00039726,30]
[421218088,1777269578760,-1408.883166,0.00039726,30]
[421218089,1777269578788,-151.0,0.00039726,30]
[421218090,1777269578817,-1408.883166,0.00039726,30]
[421218091,1777269578846,-151.0,0.00039726,30]
[421218092,1777269578877,-1408.883166,0.00039726,30]
[421218093,1777269578907,-151.0,0.00039726,30]
[421218094,1777269578936,-1408.883166,0.00039726,30]
[421218095,1777269578966,-151.0,0.00039726,30]
[421218096,1777269578994,-1408.883166,0.00039726,30]
[421218097,1777269579433,-257.72876,0.00039726,30]
[421218098,1777269579468,-1408.883166,0.00039726,30]
[421218099,1777269579498,-1408.883157,0.00039726,30]
[421218100,1777269579527,-281.435501,0.00039726,30]
[421218101,1777269579557,-281.435501,0.00039726,30]
[421218102,1777269579585,-281.435501,0.00039726,30]
[421218103,1777269579614,-281.435501,0.00039726,30]
[421218104,1777269579642,-281.435501,0.00039726,30]
[421218105,1777269579672,-8702.91772,0.00039726,30]
[421218106,1777269579702,-8702.91772,0.00039726,30]
[421218107,1777269579733,-8702.91772,0.00039726,30]